bitfinex-derivatives/quotes_SOLF0:USTF0_20251223
["timestamp","ask_amount","ask_price","bid_price","bid_amount"]
[1766467147588,0.05789042,125.21,125.16,3.30390849]
[1766467149389,2.05789042,125.21,125.16,0.05390849]
[1766467152998,2.05789042,125.21,125.16,3.30390849]
[1766467167916,0.05789042,125.21,125.16,3.30390849]
[1766467172816,2.04789042,125.21,125.16,0.05390849]
[1766467179525,1.99,125.2,125.16,0.05390849]
[1766467180722,1.99,125.2,125.13,97.63]
[1766467180917,1.94,125.19,125.13,97.63]
[1766467181118,1.94,125.19,125.13,3.27]
[1766467182019,0.05069473,125.17,125.15,0.05306095]
[1766467189230,1.94,125.19,125.15,0.05306095]
[1766467190336,0.05855599,125.18,125.15,0.05306095]
[1766467190742,1.99855599,125.18,125.15,0.05306095]
[1766467200747,1.99855599,125.18,125.15,0.00306095]
[1766467226462,7.1926,125.22,125.15,3.33306095]
[1766467226463,4.12846221,125.22,125.15,3.33306095]
[1766467227458,0.05254819,125.2,125.15,10.52906095]
[1766467227653,0.05254819,125.2,125.16,3.33]
[1766467228054,96.62846221,125.24,125.16,3.33]
[1766467228055,98.55846221,125.24,125.16,3.33]
[1766467228261,98.55846221,125.24,125.17,3.33]
[1766467229061,1.93,125.23,125.19,0.05661584]
[1766467231366,4.17846221,125.23,125.19,0.05661584]
[1766467231567,1.93,125.22,125.19,0.05661584]
[1766467232062,1.87,125.2,125.13,3.33]
[1766467232262,4.11846221,125.18,125.13,3.33]
[1766467232459,1.87,125.2,125.13,3.33]
[1766467232654,1.87,125.19,125.13,3.33]
[1766467232959,0.05600133,125.17,125.15,0.05747228]
[1766467239167,2.24846221,125.21,125.15,0.05747228]
[1766467239168,4.17846221,125.21,125.15,3.26747228]
[1766467239368,1.93,125.21,125.15,3.26747228]
[1766467244870,4.17846221,125.23,125.16,3.21]
[1766467245067,4.17846221,125.23,125.18,0.05568195]
[1766467245566,1.93,125.23,125.18,3.26568195]
[1766467245771,94.38,125.24,125.18,3.26568195]
[1766467246566,96.3,125.24,125.18,3.26568195]
[1766467247775,4.16846221,125.23,125.18,0.05568195]
[1766467247979,1.92,125.22,125.18,0.05568195]
[1766467261877,1.92,125.22,125.15,94.38]
[1766467262082,1.92,125.22,125.15,97.59]
[1766467262983,0.05490458,125.2,125.17,0.05987148]
[1766467270978,1.92490458,125.2,125.13,18.03972796]
[1766467271284,1.92490458,125.2,125.14,3.19]
[1766467271885,0.05490458,125.2,125.15,3.19]
[1766467272086,0.05490458,125.2,125.16,3.24475524]
[1766467320835,0.00490458,125.2,125.16,3.24475524]
[1766467335252,2.24677691,125.23,125.16,3.24475524]
[1766467336352,0.05883697,125.21,125.16,3.24475524]
[1766467337562,2.24677691,125.23,125.16,3.24475524]
[1766467337851,93.23900622,125.24,125.19,3.38]
[1766467338046,2.79940704,125.27,125.19,3.38]
[1766467338246,4.70940704,125.27,125.2,3.38]
[1766467338654,4.70940704,125.27,125.22,0.05304934]
[1766467340052,4.70940704,125.27,125.22,3.43304934]
[1766467340351,2.79940704,125.27,125.22,3.43304934]
[1766467350568,1.91,125.24,125.18,3.38]
[1766467350766,4.15677691,125.23,125.18,3.38]
[1766467351665,0.05428536,125.22,125.19,0.05544216]
[1766467363482,2.24677691,125.25,125.19,3.45544216]
[1766467363682,2.24677691,125.26,125.19,3.45544216]
[1766467363986,2.24677691,125.26,125.19,3.4]
[1766467364579,2.24677691,125.26,125.21,3.45716161]
[1766467366394,1.96,125.27,125.21,3.45716161]
[1766467367490,96.60677691,125.28,125.21,3.45716161]
[1766467367999,96.60677691,125.28,125.22,3.4]
[1766467368188,2.24677691,125.28,125.24,3.45999299]
[1766467370093,1.96,125.29,125.24,3.45999299]
[1766467371794,2.24677691,125.3,125.24,3.45999299]
[1766467373803,1.96,125.31,125.24,3.45999299]
[1766467373989,4.20677691,125.31,125.25,3.4]
[1766467374191,4.20677691,125.31,125.27,0.06072487]
[1766467377094,2.24677691,125.31,125.27,3.46072487]
[1766467377299,96.58677691,125.32,125.27,3.46072487]
[1766467377693,94.34,125.32,125.27,3.46072487]
[1766467382894,94.34,125.32,125.27,0.06072487]
[1766467383098,2.24677691,125.29,125.23,3.4]
[1766467383696,1.9,125.28,125.23,3.4]
[1766467384092,0.05611675,125.27,125.24,0.05804139]
[1766467391201,0.05611675,125.27,125.24,3.40804139]
[1766467401110,0.05611675,125.27,125.24,0.05804139]
[1766467401111,1.94611675,125.27,125.24,0.05804139]
[1766467405116,0.05611675,125.27,125.24,0.05804139]
[1766467406115,0.05611675,125.27,125.24,3.40804139]
[1766467408908,1.94611675,125.27,125.24,0.05804139]
[1766467415825,0.05611675,125.27,125.24,0.05804139]
[1766467416225,0.05611675,125.27,125.24,3.23804139]
[1766467421824,1.9,125.29,125.24,3.23804139]
[1766467422028,1.95,125.31,125.24,3.23804139]
[1766467422222,1.95,125.31,125.24,3.18]
[1766467422828,1.95,125.31,125.26,0.0569902]
[1766467423529,1.89,125.29,125.22,3.44]
[1766467423930,1.89,125.29,125.22,18.28972796]
[1766467424523,0.05334506,125.27,125.24,0.05781885]
[1766467428236,1.89,125.28,125.24,0.05781885]
[1766467429936,1.89,125.3,125.24,3.49781885]
[1766467433746,1.89,125.3,125.24,0.05781885]
[1766467440145,1.89,125.28,125.24,0.05781885]
[1766467491620,1.9,125.3,125.24,3.34781885]
[1766467497322,1.9,125.28,125.24,0.05781885]
[1766467506237,1.83,125.27,125.22,14.84972796]
[1766467506431,1.83,125.27,125.19,3.19]
[1766467507335,0.05987409,125.24,125.22,0.05658269]
[1766467512525,0.05987409,125.24,125.18,3.19]
[1766467513626,0.05987409,125.24,125.2,0.05900839]
[1766467513940,0.05952063,125.23,125.2,0.05900839]
[1766467527057,0.05952063,125.23,125.2,3.24900839]
[1766467530561,0.05952063,125.23,125.2,0.05900839]
[1766467531654,0.05952063,125.23,125.2,3.24900839]
[1766467533362,94.32,125.26,125.2,3.24900839]
[1766467534460,0.05971897,125.24,125.2,3.24900839]
[1766467535763,94.32,125.26,125.2,3.24900839]
[1766467536858,3.50946532,125.29,125.2,3.24900839]
[1766467537066,3.50946532,125.29,125.23,3.26733628]
[1766467537266,101.528,125.3,125.23,3.26733628]
[1766467541860,94.34,125.3,125.23,3.26733628]
[1766467543973,3.50946532,125.29,125.23,3.26733628]
[1766467552971,3.50946532,125.27,125.23,0.05733628]
[1766467556588,3.50946532,125.27,125.23,3.26733628]
[1766467557087,3.50946532,125.29,125.23,3.26733628]
[1766467557294,94.32,125.28,125.23,3.26733628]
[1766467574608,94.32,125.28,125.23,10.45883628]
[1766467581423,96.56454189,125.28,125.23,10.45883628]
[1766467583826,96.56454189,125.28,125.23,3.26733628]
[1766467585730,94.32,125.28,125.23,3.26733628]
[1766467586225,94.32,125.28,125.24,3.25]
[1766467593848,2.24454189,125.29,125.24,3.25]
[1766467601046,94.32,125.3,125.24,3.25]
[1766467601248,2.24454189,125.29,125.26,0.05424218]
[1766467602544,94.32,125.3,125.26,3.45424218]
[1766467611347,94.32,125.3,125.26,0.05424218]
[1766467612850,96.56454189,125.3,125.26,0.05424218]
[1766467613553,94.32,125.3,125.26,0.05424218]
[1766467613851,96.56454189,125.3,125.26,0.05424218]
[1766467618159,94.32,125.3,125.26,0.05424218]
[1766467618346,96.56454189,125.3,125.26,0.05424218]
[1766467621050,0.05460557,125.29,125.26,0.00424218]
[1766467621245,2.24454189,125.28,125.22,231.67918462]
[1766467621557,2.24454189,125.28,125.22,119.80098462]
[1766467622050,2.24454189,125.28,125.22,104.892]
[1766467622251,0.05855225,125.26,125.24,0.05839594]
[1766467622450,2.24454189,125.28,125.24,0.05839594]
[1766467627957,96.56454189,125.3,125.24,0.05839594]
[1766467628159,2.24454189,125.28,125.24,0.05839594]
[1766467634270,94.32,125.3,125.24,0.05839594]
[1766467634468,2.24454189,125.29,125.24,0.05839594]
[1766467635968,94.32,125.3,125.24,0.05839594]
[1766467635969,97.82735189,125.3,125.24,0.05839594]
[1766467647478,94.32,125.3,125.24,0.05839594]
[1766467651984,94.32,125.3,125.24,10.50929594]
[1766467652184,3.50735189,125.31,125.24,10.50929594]
[1766467656188,94.3,125.32,125.25,3.32]
[1766467656385,94.3,125.32,125.27,0.05227858]
[1766467667101,3.50735189,125.31,125.27,0.05227858]
[1766467667302,3.50735189,125.31,125.27,0.00227858]
[1766467668303,0.0502955,125.3,125.27,0.00227858]
[1766467683518,0.0502955,125.3,125.23,14.90898462]
[1766467683719,3.50735189,125.29,125.22,10.552]
[1766467683922,3.50735189,125.29,125.22,25.46098462]
[1766467684116,3.50735189,125.29,125.23,3.36]
[1766467684522,0.05176035,125.27,125.25,0.05228375]
[1766467686021,3.50735189,125.29,125.25,0.05228375]
[1766467691726,3.50735189,125.31,125.25,0.05228375]
[1766467697934,2.24470627,125.29,125.25,0.05228375]
[1766467702341,101.4869,125.32,125.25,0.05228375]
[1766467702543,2.24470627,125.3,125.25,0.05228375]
[1766467707553,2.24470627,125.31,125.25,3.22228375]
[1766467722051,94.3,125.32,125.25,3.22228375]
[1766467723656,94.3,125.32,125.26,3.42]
[1766467723854,94.3,125.32,125.28,0.05689783]
[1766467726157,2.24470627,125.31,125.28,0.05689783]
[1766467727158,2.24470627,125.29,125.24,3.42]
[1766467728053,0.05547939,125.28,125.25,0.05757874]
[1766467728248,2.24470627,125.29,125.25,0.05757874]
[1766467728452,2.24470627,125.27,125.22,3.42]
[1766467728758,206.0945,125.32,125.22,3.42]
[1766467728949,2.24470627,125.27,125.22,3.42]
[1766467729547,0.05627645,125.26,125.23,0.06090942]
[1766467738361,2.24470627,125.28,125.23,0.06090942]
[1766467738658,2.24470627,125.28,125.23,3.48090942]
[1766467738858,2.24470627,125.3,125.23,3.48090942]
[1766467739053,2.24470627,125.3,125.23,3.42]
[1766467739552,2.24470627,125.3,125.25,0.06073305]
[1766467753575,2.24470627,125.3,125.25,3.56073305]
[1766467754682,2.24470627,125.31,125.25,3.56073305]
[1766467757885,94.3,125.32,125.25,3.56073305]
[1766467758181,2.24470627,125.31,125.25,3.56073305]
[1766467759985,97.80626225,125.32,125.25,3.56073305]
[1766467776499,94.3,125.32,125.25,3.56073305]
[1766467776700,97.80626225,125.32,125.25,3.56073305]
[1766467780004,94.3,125.32,125.25,3.56073305]
[1766467780705,7.1851,125.35,125.25,3.56073305]
[1766467780706,3.50626225,125.35,125.27,3.17]
[1766467780895,97.80626225,125.35,125.3,0.05886425]
[1766467785694,94.3,125.35,125.3,0.05886425]
[1766467785899,97.80626225,125.35,125.3,0.05886425]
[1766467789307,97.80626225,125.35,125.26,10.3597]
[1766467789512,3.50626225,125.33,125.26,3.17]
[1766467789715,94.28,125.32,125.26,3.17]
[1766467790301,0.05968898,125.3,125.28,0.05310364]
[1766467793615,0.05968898,125.3,125.28,0.00310364]
[1766467801332,0.05968898,125.3,125.23,3.17]
[1766467801517,3.50626225,125.29,125.22,7.192]
[1766467801715,3.50626225,125.29,125.21,3.17]
[1766467802311,0.05784826,125.26,125.24,0.05125921]
[1766467802714,0.05784826,125.26,125.21,3.17]
[1766467803726,0.05784826,125.26,125.22,0.0571633]
[1766467812226,0.05784826,125.26,125.22,3.4771633]
[1766467833360,2.30332231,125.26,125.22,3.4771633]
[1766467837967,2.24547405,125.24,125.2,3.37]
[1766467838456,2.24547405,125.22,125.17,3.37]
[1766467839169,0.05165616,125.21,125.18,3.42932312]
[1766467840561,0.00165616,125.21,125.18,3.42932312]
[1766467840762,7.1903,125.26,125.18,3.42932312]
[1766467841069,2.24547405,125.25,125.18,3.37]
[1766467842070,2.24547405,125.25,125.21,3.37]
[1766467843169,0.05973394,125.24,125.21,3.37]
[1766467844870,2.24547405,125.23,125.2,0.06111947]
[1766467848471,2.24547405,125.21,125.17,3.37]
[1766467849474,0.05974986,125.2,125.18,3.42073168]
[1766467850578,0.05974986,125.2,125.18,0.05073168]
[1766467851176,0.05974986,125.2,125.16,3.37]
[1766467852270,0.05974986,125.2,125.17,0.05719823]
[1766467859689,2.24547405,125.19,125.17,0.05719823]
[1766467859983,2.24547405,125.19,125.14,3.37]
[1766467860790,2.24547405,125.18,125.14,3.37]
[1766467861186,0.05359807,125.17,125.15,0.05143644]
[1766467861788,0.05359807,125.17,125.15,3.42143644]
[1766467862887,0.00359807,125.17,125.15,3.42143644]
[1766467863091,2.24547405,125.22,125.15,3.42143644]
[1766467863284,2.24547405,125.22,125.15,3.37]
[1766467863591,101.5319,125.23,125.15,3.37]
[1766467863886,2.24547405,125.22,125.15,3.37]
[1766467864086,0.05756294,125.2,125.17,3.42037997]
[1766467864284,2.24547405,125.22,125.17,3.42037997]
[1766467864485,94.34,125.23,125.17,3.42037997]
[1766467865185,0.06094684,125.21,125.17,3.42037997]
[1766467865388,0.00094684,125.21,125.17,3.42037997]
[1766467865692,103.81517405,125.27,125.19,3.37]
[1766467866087,2.24547405,125.25,125.19,3.37]
[1766467866796,0.05847967,125.23,125.21,0.0536004]
[1766467873281,96.62547405,125.27,125.21,3.4036004]
[1766467874295,0.05531906,125.25,125.21,3.4036004]
[1766467878397,2.30079311,125.25,125.21,0.0536004]
[1766467878592,2.24547405,125.23,125.16,3.35]
[1766467879189,2.24547405,125.21,125.16,3.35]
[1766467879590,0.05846006,125.2,125.17,3.40521017]
[1766467883597,0.05846006,125.2,125.17,0.05521017]
[1766467895117,0.05846006,125.2,125.15,3.35]
[1766467895997,0.05846006,125.2,125.16,0.05568538]
[1766467896610,7.25216006,125.2,125.16,0.05568538]
[1766467903410,3.51133068,125.19,125.13,3.5]
[1766467903611,94.38,125.18,125.13,3.5]
[1766467904515,0.05576304,125.17,125.14,0.05181621]
[1766467908115,3.56709372,125.17,125.14,0.05181621]
[1766467908314,3.51133068,125.15,125.1,3.5]
[1766467908618,94.38,125.14,125.1,3.5]
[1766467909309,0.05704296,125.13,125.11,0.05552913]
[1766467909706,0.05704296,125.13,125.1,3.975e-05]
[1766467909908,0.05704296,125.13,125.05,7.2018]
[1766467910108,94.38,125.14,125.05,7.2018]
[1766467910306,3.51133068,125.13,125.03,7.2031]
[1766467910714,0.05547302,125.09,125.07,0.05210546]
[1766467910919,3.51133068,125.13,125.07,0.05210546]
[1766467911818,3.51133068,125.13,125.07,3.55210546]
[1766467911819,0.05848075,125.11,125.07,3.55210546]
[1766467918319,97.89133068,125.14,125.07,3.55210546]
[1766467918526,94.38,125.14,125.07,3.55210546]
[1766467920318,0.05673327,125.12,125.08,3.5]
[1766467920518,94.38,125.14,125.08,3.5]
[1766467920719,3.51133068,125.17,125.09,3.5]
[1766467920925,97.93133068,125.17,125.09,3.5]
[1766467921121,3.3,125.16,125.09,3.5]
[1766467921421,0.06027808,125.14,125.11,0.05540053]
[1766467930230,3.26027808,125.14,125.11,0.05540053]
[1766467930422,3.26027808,125.14,125.08,3.34]
[1766467930625,3.2,125.14,125.08,3.34]
[1766467931331,0.05525154,125.12,125.1,0.06067401]
[1766467944936,2.25046633,125.13,125.1,3.40067401]
[1766467945941,0.05051932,125.13,125.1,3.40067401]
[1766467948542,0.00051932,125.13,125.1,3.40067401]
[1766467949235,2.25046633,125.15,125.1,3.40067401]
[1766467950338,0.04777788,125.14,125.1,3.40067401]
[1766467950946,96.67046633,125.16,125.1,3.40067401]
[1766467951434,73.36,125.16,125.11,3.34]
[1766467951635,2.25046633,125.18,125.11,3.34]
[1766467951838,2.25046633,125.18,125.13,0.05654028]
[1766467952352,2.25046633,125.16,125.13,0.05654028]
[1766467952647,5.45046633,125.16,125.13,0.05654028]
[1766467953438,5.59046633,125.14,125.07,22.10968462]
[1766467953640,5.59046633,125.14,125.07,7.2007]
[1766467954546,0.05503929,125.12,125.09,0.05685568]
[1766467960554,3.43,125.09,125.01,14.90898462]
[1766467960849,2.25046633,125.08,125.01,14.90898462]
[1766467961442,0.0001948,125.06,125.03,0.05484212]
[1766467961648,3.43,125.09,125.03,0.05484212]
[1766467962344,5.68046633,125.08,125.03,0.05484212]
[1766467962549,0.05320116,125.07,125.03,0.05484212]
[1766467965152,5.68046633,125.04,124.95,14.90898462]
[1766467965344,5.68046633,125.04,124.94,228.1602257]
[1766467965538,5.68046633,125.04,124.94,229.55239276]
[1766467965539,3.43,125.03,124.94,229.55239276]
[1766467965740,5.68046633,125.03,124.94,229.55239276]
[1766467966154,0.00046706,125.0,124.97,0.05210756]
[1766467969459,3.43046706,125.0,124.97,0.05210756]
[1766467969955,3.43046706,125.0,124.97,0.00210756]
[1766467969956,3.43,124.99,124.97,0.00210756]
[1766467972263,0.00046706,125.0,124.97,0.00210756]
[1766467972567,3.43046706,125.0,124.97,0.00210756]
[1766467972866,3.43,124.97,124.87,119.407]
[1766467973058,2.25046633,124.98,124.87,121.65766633]
[1766467973059,2.25046633,124.95,124.87,121.65766633]
[1766467973361,100.16046633,124.96,124.87,121.65766633]
[1766467973560,97.91,124.97,124.88,119.3931]
[1766467973763,0.0577889,124.94,124.91,0.06007265]
[1766467976465,3.43,124.97,124.91,0.06007265]
[1766467977462,0.05236194,124.95,124.91,0.06007265]
[1766467980967,3.48236194,124.95,124.91,0.06007265]
[1766467981168,2.25046633,124.92,124.84,112.2188]
[1766467981365,3.43,124.93,124.85,114.46066633]
[1766467981567,3.43,124.95,124.85,114.46066633]
[1766467981765,5.68046633,124.94,124.86,119.4152]
[1766467981962,5.68046633,124.94,124.86,7.2126]
[1766467982270,0.05887309,124.91,124.89,0.05840924]
[1766467982963,3.48887309,124.91,124.84,10.85800393]
[1766467983155,3.43,124.89,124.76,112.2855]
[1766467983363,112.2165,124.85,124.73,3.51]
[1766467983655,2.25046633,124.77,124.7,3.51]
[1766467983859,94.54,124.77,124.7,3.51]
[1766467984064,112.2474,124.82,124.72,3.51]
[1766467984255,2.25046633,124.8,124.72,3.51]
[1766467984464,96.79046633,124.8,124.72,3.51]
[1766467984667,119.4174,124.86,124.73,3.51]
[1766467984871,119.4174,124.86,124.71,112.3356]
[1766467984872,114.47816633,124.84,124.74,3.51]
[1766467985072,2.25046633,124.83,124.74,3.51]
[1766467985280,119.4174,124.86,124.78,0.05699919]
[1766467985281,0.05650242,124.8,124.78,0.05699919]
[1766467985568,112.1869,124.88,124.8,3.51]
[1766467985776,112.1757,124.9,124.8,3.51]
[1766467985777,94.56,124.87,124.8,3.51]
[1766467985976,112.1886,124.88,124.8,3.51]
[1766467986159,206.7395,124.89,124.8,3.51]
[1766467986359,2.25046633,124.88,124.81,3.44]
[1766467986675,114.51690414,124.86,124.78,3.44]
[1766467986865,2.25046633,124.84,124.78,3.44]
[1766467987060,206.778,124.85,124.78,3.44]
[1766467987264,2.25046633,124.81,124.73,3.44]
[1766467987872,2.25046633,124.81,124.76,0.00229748]
[1766467987873,0.05447426,124.78,124.76,0.00229748]
[1766467988167,2.30494059,124.78,124.72,3.44]
[1766467988374,2.25046633,124.76,124.65,7.2251]
[1766467988570,112.2609,124.8,124.67,112.3724]
[1766467988762,2.25046633,124.76,124.68,2.25046633]
[1766467988961,0.05293042,124.73,124.71,0.05315347]
[1766467989371,0.05293042,124.73,124.63,2.25046633]
[1766467989570,2.25046633,124.72,124.62,4.49161513]
[1766467989768,2.25046633,124.7,124.62,4.49161513]
[1766467990065,119.5277,124.75,124.65,112.3903]
[1766467990066,94.58,124.75,124.65,112.3903]
[1766467990274,94.58,124.75,124.65,3.44]
[1766467990459,0.05193831,124.71,124.69,0.00317113]
[1766467990662,94.6,124.7,124.63,3.44]
[1766467991467,100.26532862,124.7,124.63,3.44]
[1766467991771,0.0007631,124.68,124.65,3.49271022]
[1766467992074,5.66532862,124.77,124.69,3.44]
[1766467992256,5.66532862,124.77,124.68,112.3628]
[1766467992257,5.66532862,124.73,124.64,3.44]
[1766467992867,5.66532862,124.73,124.67,0.05754804]
[1766467993275,119.4762,124.8,124.68,3.44]
[1766467993470,5.66532862,124.78,124.69,3.44]
[1766467993971,0.05560887,124.75,124.72,0.05304998]
[1766467994166,0.05560887,124.75,124.65,3.44]
[1766467994364,5.66532862,124.76,124.67,3.44]
[1766467994566,112.2823,124.78,124.68,3.44]
[1766467994567,100.30532862,124.78,124.68,3.44]
[1766467994770,5.66532862,124.76,124.68,3.44]
[1766467995172,0.05683027,124.73,124.64,3.44]
[1766467995373,5.66532862,124.74,124.64,3.44]
[1766467995779,5.66532862,124.74,124.65,3.44]
[1766467995982,5.66532862,124.76,124.65,3.44]
[1766467996177,0.05960673,124.72,124.69,0.05505747]
[1766467996384,5.66532862,124.76,124.69,0.05505747]
[1766467996584,5.66532862,124.76,124.69,3.49505747]
[1766467997476,0.05045329,124.74,124.69,3.49505747]
[1766467997777,0.05045329,124.74,124.7,0.05048491]
[1766467998781,0.05045329,124.74,124.66,3.44]
[1766467998782,5.71578191,124.74,124.66,3.44]
[1766467998981,112.3058,124.75,124.66,3.44]
[1766467998982,5.66532862,124.72,124.66,3.44]
[1766467999176,5.66532862,124.74,124.66,3.44]
[1766467999778,5.66532862,124.74,124.69,0.05588662]
[1766468000383,5.66532862,124.76,124.69,0.05588662]
[1766468000579,5.66532862,124.76,124.66,3.44]
[1766468000780,0.05757872,124.72,124.7,0.0590632]
[1766468001474,214.1605,124.78,124.7,0.0590632]
[1766468001475,100.32532862,124.78,124.7,0.0590632]
[1766468001675,5.66532862,124.8,124.7,115.7825]
[1766468001880,5.66532862,124.8,124.71,3.44]
[1766468002076,94.68,124.83,124.73,3.44]
[1766468002282,94.68,124.83,124.74,3.44]
[1766468002478,5.66532862,124.86,124.77,3.49044739]
[1766468002688,5.66532862,124.86,124.77,3.44]
[1766468002886,5.66532862,124.82,124.72,3.44]
[1766468003592,0.05699907,124.78,124.76,0.05758197]
[1766468003980,16.40408977,124.84,124.76,0.05758197]
[1766468004182,16.40408977,124.84,124.73,3.44]
[1766468004780,94.68,124.85,124.76,3.44]
[1766468004993,0.02766246,124.82,124.79,0.06042655]
[1766468008095,0.02766246,124.82,124.79,0.00042655]
[1766468008398,0.02766246,124.82,124.74,3.44]
[1766468008692,103.86928977,124.85,124.74,3.44]
[1766468008885,103.86928977,124.85,124.75,3.44]
[1766468009290,0.05667474,124.81,124.79,0.05659306]
[1766468009702,103.86928977,124.85,124.79,0.05659306]
[1766468009896,94.68,124.85,124.79,0.05659306]
[1766468010693,0.03141427,124.83,124.79,0.05659306]
[1766468010894,0.03141427,124.83,124.74,3.44]
[1766468011194,9.18928977,124.82,124.74,3.44]
[1766468012088,0.05485906,124.79,124.77,0.05799743]
[1766468014498,0.05485906,124.79,124.74,3.44]
[1766468015494,0.05485906,124.79,124.75,0.05664129]
[1766468015998,0.00485906,124.79,124.75,3.46664129]
[1766468016394,94.68,124.85,124.75,3.46664129]
[1766468016597,94.68,124.85,124.75,3.41]
[1766468017106,94.68,124.85,124.76,3.41]
[1766468017398,0.05259137,124.82,124.79,0.05733878]
[1766468018196,0.00259137,124.82,124.79,0.05733878]
[1766468021004,94.68,124.85,124.79,3.50733878]
[1766468021200,216.03258977,124.89,124.79,3.50733878]
[1766468021401,112.1866,124.88,124.79,3.45]
[1766468021702,121.39348977,124.86,124.76,3.45]
[1766468022094,0.03855432,124.82,124.8,0.05236946]
[1766468022308,0.03855432,124.82,124.75,3.45]
[1766468023504,0.03855432,124.82,124.77,0.05579223]
[1766468025114,119.49525432,124.82,124.72,3.45]
[1766468025319,9.18928977,124.81,124.72,3.45]
[1766468025611,119.504,124.77,124.66,3.45]
[1766468025814,9.18928977,124.75,124.66,3.45]
[1766468026113,0.05080662,124.72,124.69,0.05699154]
[1766468028609,0.05080662,124.72,124.63,3.45]
[1766468028816,9.18928977,124.72,124.63,3.45]
[1766468029613,0.05987992,124.69,124.66,0.05175182]
[1766468029810,112.3078,124.75,124.66,0.05175182]
[1766468029811,16.40868977,124.75,124.66,3.50175182]
[1766468030115,103.84928977,124.76,124.66,3.45]
[1766468030305,7.2195,124.75,124.66,3.45]
[1766468030707,0.0549065,124.72,124.69,0.05989455]
[1766468031615,0.0049065,124.72,124.69,3.50989455]
[1766468032017,9.18928977,124.79,124.7,3.45]
[1766468032216,9.18928977,124.79,124.71,3.45]
[1766468032511,94.7,124.81,124.71,3.45]
[1766468032914,0.06074505,124.77,124.75,0.05926836]
[1766468033119,0.06074505,124.77,124.71,3.45]
[1766468034120,0.06074505,124.77,124.73,0.06037472]
[1766468036509,0.06074505,124.77,124.68,3.45]
[1766468036710,9.18928977,124.79,124.68,3.45]
[1766468037717,0.00455292,124.75,124.72,0.05807672]
[1766468037922,94.7,124.81,124.72,3.45]
[1766468038920,0.0587892,124.78,124.75,0.05786564]
[1766468044623,0.0587892,124.78,124.7,3.45]
[1766468044822,121.45028977,124.8,124.7,3.45]
[1766468045613,0.05978258,124.76,124.74,0.05646589]
[1766468046422,96.35978258,124.76,124.66,3.23]
[1766468046625,94.7,124.76,124.66,3.23]
[1766468047323,0.05755337,124.72,124.7,0.05830311]
[1766468048424,0.05755337,124.72,124.66,3.23]
[1766468049422,0.05755337,124.72,124.68,0.05113668]
[1766468049623,112.3155,124.74,124.68,0.00113668]
[1766468049828,16.41058977,124.72,124.63,3.23]
[1766468050115,94.7,124.71,124.63,3.23]
[1766468050322,94.7,124.71,124.62,7.72161513]
[1766468050918,0.0529415,124.68,124.65,0.05416955]
[1766468051824,0.0529415,124.68,124.65,0.00416955]
[1766468056227,0.0029415,124.68,124.65,0.00416955]
[1766468056629,0.0029415,124.68,124.65,3.23416955]
[1766468059430,0.0029415,124.68,124.65,0.00416955]
[1766468065729,16.41398977,124.66,124.56,3.23]
[1766468065933,5.67186369,124.65,124.56,3.23]
[1766468066323,100.41186369,124.67,124.58,3.23]
[1766468066730,0.05089893,124.64,124.61,0.05339136]
[1766468067434,0.05089893,124.64,124.61,0.00339136]
[1766468067629,0.05089893,124.64,124.57,3.23]
[1766468068533,0.05089893,124.64,124.59,0.05883637]
[1766468068738,5.72276262,124.64,124.59,0.05883637]
[1766468070939,0.05089893,124.64,124.59,0.05883637]
[1766468073944,5.72276262,124.64,124.59,0.05883637]
[1766468075549,5.67186369,124.62,124.53,3.23]
[1766468075934,5.67186369,124.6,124.53,3.23]
[1766468076345,94.78,124.6,124.53,3.23]
[1766468076544,94.78,124.61,124.55,3.51036844]
[1766468076844,100.45186369,124.63,124.55,3.51036844]
[1766468077037,100.45186369,124.63,124.55,3.45]
[1766468077238,94.78,124.63,124.55,3.45]
[1766468077439,100.45186369,124.63,124.55,3.45]
[1766468077642,0.06106164,124.6,124.58,0.0577073]
[1766468077943,0.00106164,124.6,124.58,0.0577073]
[1766468078735,94.78,124.63,124.58,3.5077073]
[1766468079846,0.05770048,124.62,124.58,3.5077073]
[1766468080746,100.47186369,124.67,124.58,3.5077073]